bitfinex/quotes_SOLUSD_20250829
["timestamp","ask_amount","ask_price","bid_price","bid_amount"]
[1756480929273,9.14274204,210.91,210.9,20.0]
[1756480929449,34.87578417,210.91,210.9,20.0]
[1756480929877,25.73304213,210.91,210.9,20.0]
[1756480930047,31.184401,210.91,210.88,20.0]
[1756480930248,25.73304213,210.89,210.86,20.0]
[1756480930467,4.74135887,210.91,210.88,20.0]
[1756480930776,25.73304213,210.89,210.88,20.0]
[1756480931151,0.77,210.97,210.9,20.0]
[1756480931553,25.73304213,210.91,210.87,20.0]
[1756480931773,25.73304213,210.88,210.84,20.0]
[1756480932072,25.73304213,210.85,210.84,20.0]
[1756480932582,0.06,210.84,210.8,20.0]
[1756480932883,0.06,210.84,210.78,20.0]
[1756480933186,25.79304213,210.84,210.83,20.0]
[1756480933546,0.06,210.84,210.83,20.0]
[1756480933750,25.79304213,210.84,210.83,20.0]
[1756480935077,4.74315799,210.83,210.79,20.0]
[1756480935264,25.73304213,210.8,210.76,20.0]
[1756480935460,0.85216157,210.82,210.75,0.03]
[1756480935461,25.73304213,210.77,210.75,0.03]
[1756480935784,13.59559401,210.75,210.66,20.0]
[1756480935982,25.73304213,210.67,210.66,20.0]
[1756480936197,25.73304213,210.68,210.66,20.71]
[1756480936370,25.73304213,210.68,210.67,0.71]
[1756480936768,26.14216157,210.75,210.7,20.0]
[1756480936979,0.85216157,210.76,210.7,20.0]
[1756480936980,25.73304213,210.71,210.7,20.0]
[1756480937505,25.73304213,210.71,210.64,0.71]
[1756480937506,30.47891695,210.71,210.68,20.0]
[1756480937688,25.73304213,210.69,210.68,20.0]
[1756480937870,25.73304213,210.69,210.66,20.0]
[1756480938071,25.73304213,210.67,210.66,20.0]
[1756480938681,25.73304213,210.67,210.63,20.0]
[1756480938882,25.73304213,210.64,210.63,20.0]
[1756480940298,25.73304213,210.64,210.63,25.45764687]
[1756480940797,0.85216157,210.69,210.64,20.0]
[1756480940969,0.14216157,210.67,210.64,20.0]
[1756480941176,4.74698566,210.66,210.64,20.0]
[1756480941383,41.05,210.7,210.64,20.0]
[1756480941586,45.79609823,210.7,210.64,20.0]
[1756480941780,25.73304213,210.65,210.62,0.03]
[1756480942000,25.8752037,210.63,210.62,0.03]
[1756480942300,26.5852037,210.63,210.62,0.03]
[1756480943193,31.33286547,210.63,210.62,0.03]
[1756480944289,26.0,210.6,210.59,0.03]
[1756480944611,26.0,210.6,210.53,0.2]
[1756480944612,13.73775558,210.59,210.53,0.2]
[1756480944803,25.73304213,210.54,210.53,0.2]
[1756480944988,25.8752037,210.54,210.53,0.2]
[1756480945188,31.33489497,210.54,210.53,0.2]
[1756480945387,31.33489497,210.54,210.51,0.03]
[1756480945388,39.73775558,210.53,210.51,0.03]
[1756480945611,25.73304213,210.52,210.51,0.03]
[1756480945800,26.44304213,210.52,210.51,0.03]
[1756480946203,66.2352037,210.52,210.51,0.03]
[1756480946504,66.9452037,210.52,210.51,0.03]
[1756480946814,66.2352037,210.52,210.51,0.03]
[1756480947015,25.8752037,210.52,210.51,0.03]
[1756480947195,70.84318463,210.52,210.51,0.03]
[1756480947585,30.48318463,210.52,210.51,0.03]
[1756480947813,25.73304213,210.52,210.51,0.03]
[1756480948198,26.5852037,210.52,210.51,0.03]
[1756480948603,26.0,210.49,210.46,0.03]
[1756480948799,92.2352037,210.49,210.46,0.03]
[1756480949105,25.8752037,210.47,210.46,0.03]
[1756480949292,30.62647466,210.47,210.46,0.03]
[1756480949610,66.2552037,210.47,210.46,0.03]
[1756480950001,71.00647466,210.47,210.46,0.03]
[1756480950202,66.2552037,210.47,210.46,0.03]
[1756480950621,25.8752037,210.47,210.46,0.03]
[1756480951028,25.3752037,210.47,210.46,0.03]
[1756480951236,30.48431309,210.47,210.46,0.03]
[1756480951525,31.19431309,210.47,210.46,0.03]
[1756480952099,70.86431309,210.47,210.46,0.03]
[1756480952308,30.48431309,210.47,210.46,0.03]
[1756480952521,70.86431309,210.47,210.46,0.03]
[1756480953229,71.71647466,210.47,210.46,1e-08]
[1756480953426,26.14216157,210.44,210.43,0.03]
[1756480953618,92.2552037,210.44,210.43,0.03]
[1756480954402,4.75127096,210.47,210.43,0.03]
[1756480954604,25.73304213,210.44,210.43,0.73]
[1756480954798,25.73304213,210.45,210.44,20.0]
[1756480955126,9.09523856,210.59,210.44,20.0]
[1756480955127,0.71,210.58,210.5,20.0]
[1756480955340,45.12901457,210.57,210.5,20.0]
[1756480955627,25.73304213,210.51,210.5,20.0]
[1756480955923,25.73304213,210.51,210.5,20.7]
[1756480956506,25.73304213,210.51,210.5,20.0]
[1756480957017,25.73304213,210.52,210.5,20.7]
[1756480957223,25.73304213,210.52,210.51,0.7]
[1756480957421,26.0,210.58,210.52,20.0]
[1756480957624,25.73304213,210.53,210.52,20.0]
[1756480957826,4.74856355,210.59,210.54,20.0]
[1756480958020,25.73304213,210.55,210.54,20.7]
[1756480958218,13.59559401,210.63,210.59,20.0]
[1756480958219,25.73304213,210.6,210.59,20.0]
[1756480958526,25.73304213,210.62,210.59,20.7]
[1756480958713,25.73304213,210.62,210.61,20.0]
[1756480959123,25.73304213,210.64,210.63,20.0]
[1756480959309,25.73304213,210.64,210.63,20.7]
[1756480959713,40.38,210.73,210.68,20.0]
[1756480959920,25.73304213,210.69,210.68,20.7]
[1756480960524,25.73304213,210.69,210.68,20.0]
[1756480960729,25.73304213,210.69,210.66,20.0]
[1756480960910,25.73304213,210.67,210.66,20.0]
[1756480961111,25.73304213,210.67,210.66,20.7]
[1756480961637,25.73304213,210.67,210.66,20.0]
[1756480962841,25.73304213,210.69,210.68,20.0]
[1756480963020,4.74519293,210.74,210.68,20.7]
[1756480963215,25.73304213,210.7,210.68,20.7]
[1756480963419,25.73304213,210.69,210.68,20.0]
[1756480965222,25.73304213,210.69,210.66,20.0]
[1756480965541,25.73304213,210.67,210.63,20.0]
[1756480965717,25.73304213,210.64,210.63,20.0]
[1756480965920,25.73304213,210.64,210.63,20.7]
[1756480966116,25.73304213,210.65,210.64,20.0]
[1756480966322,25.73304213,210.65,210.64,20.7]
[1756480966651,25.73304213,210.68,210.66,20.0]
[1756480966940,25.73304213,210.67,210.66,20.7]
[1756480967140,25.73304213,210.71,210.69,20.0]
[1756480967446,25.73304213,210.71,210.69,20.7]
[1756480967642,25.73304213,210.72,210.71,20.0]
[1756480967947,0.06,210.75,210.71,20.0]
[1756480968324,25.73304213,210.73,210.71,20.0]
[1756480968526,25.73304213,210.72,210.71,20.0]
[1756480969231,25.73304213,210.73,210.71,20.0]
[1756480969429,0.77,210.78,210.77,20.0]
[1756480969430,0.06,210.78,210.77,20.0]
[1756480969626,0.06,210.78,210.77,20.7]
[1756480969945,0.06,210.78,210.77,46.43304213]
[1756480970248,0.06,210.8,210.79,20.0]
[1756480970448,25.73304213,210.89,210.83,45.73304213]
[1756480970950,25.73304213,210.89,210.83,46.43304213]
[1756480971148,25.73304213,210.85,210.83,20.7]
[1756480971444,16.56726951,210.85,210.83,20.7]
[1756480971651,16.56726951,210.87,210.83,20.7]
[1756480971946,14.27,211.08,210.83,20.7]
[1756480971947,4.74001797,210.97,210.91,20.0]
[1756480972122,16.56726951,210.92,210.91,20.0]
[1756480972319,0.14216157,210.96,210.91,20.0]
[1756480972524,16.56726951,210.92,210.91,20.0]
[1756480973233,4.74076519,210.94,210.91,20.0]
[1756480973444,25.69999475,210.92,210.91,20.0]
[1756480973747,4.74076519,210.94,210.91,20.0]
[1756480974048,25.69999475,210.92,210.91,20.0]
[1756480974449,4.74076519,210.94,210.91,20.0]
[1756480974645,25.69999475,210.92,210.91,20.0]
[1756480975728,4.74023511,210.96,210.93,20.0]
[1756480976046,25.69999475,210.94,210.93,20.0]
[1756480976631,30.4406793,210.94,210.91,20.0]
[1756480976853,25.69999475,210.92,210.91,20.0]
[1756480977361,4.74068455,210.94,210.91,20.0]
[1756480977543,25.69999475,210.92,210.91,20.0]
[1756480978647,4.74045982,210.95,210.91,20.0]
[1756480978955,74.3101373,210.97,210.84,70.76291916]
[1756480978956,30.74002009,210.97,210.93,20.0]
[1756480979147,25.69999475,210.94,210.93,20.0]
[1756480980319,26.40999475,210.94,210.93,20.0]
[1756480980530,25.69999475,210.94,210.93,20.0]
[1756480980928,0.14216157,210.93,210.87,20.0]
[1756480981141,25.69999475,210.88,210.87,20.0]
[1756480981343,25.69999475,210.92,210.89,20.0]
[1756480981549,4.74068455,210.94,210.93,20.0]
[1756480981946,5.41068455,210.94,210.91,20.0]
[1756480982152,4.74068455,210.94,210.91,20.0]
[1756480982678,4.74068455,210.94,210.93,20.0]
[1756480982858,30.4406793,210.94,210.93,20.0]
[1756480983181,25.69999475,210.94,210.93,20.0]
[1756480985448,31.1106793,210.94,210.93,20.0]
[1756480985657,30.4406793,210.94,210.93,20.0]
[1756480986344,25.69999475,210.94,210.93,20.0]
[1756480986956,31.1106793,210.94,210.93,20.0]
[1756480987160,30.4406793,210.94,210.93,20.0]
[1756480987948,31.1106793,210.94,210.93,20.0]
[1756480988147,30.4406793,210.94,210.93,20.0]
[1756480989456,31.1106793,210.94,210.9,20.0]
[1756480989662,25.69999475,210.91,210.9,20.0]
[1756480990568,4.80068455,210.94,210.9,20.71]
[1756480990569,0.06,210.94,210.9,20.71]
[1756480990874,0.06,210.94,210.93,20.0]
[1756480991077,25.75999475,210.94,210.93,20.0]
[1756480992072,0.06,210.94,210.89,20.0]
[1756480992276,0.06,210.94,210.91,20.0]
[1756480992579,0.06,210.94,210.84,0.03]
[1756480992580,4.74135887,210.91,210.86,20.0]
[1756480992779,4.74135887,210.91,210.84,0.74]
[1756480992780,0.81216157,210.9,210.85,20.0]
[1756480993151,0.67,210.89,210.85,20.0]
[1756480993359,0.67,210.88,210.85,20.0]
[1756480993663,0.67,210.87,210.84,0.03]
[1756480993858,25.69999475,210.85,210.84,20.03]
[1756480994080,25.69999475,210.85,210.84,0.03]
[1756480994378,26.51215632,210.85,210.84,0.03]
[1756480994884,31.2548644,210.85,210.84,0.03]
[1756480995580,22.13348351,210.85,210.84,0.03]
[1756480995786,22.13348351,210.85,210.84,1e-08]
[1756480995787,35.72907752,210.85,210.84,1e-08]
[1756480996170,26.0,210.82,210.81,0.03]
[1756480996370,96.57636944,210.82,210.81,0.03]
[1756480996598,97.24636944,210.82,210.81,0.03]
[1756480996992,13.73775558,210.81,210.79,0.03]
[1756480997187,30.17420787,210.8,210.79,0.03]
[1756480997389,30.84420787,210.8,210.79,0.03]
[1756480998076,16.57861386,210.74,210.71,20.0]
[1756480998275,16.57861386,210.72,210.71,20.0]
[1756480998702,16.57861386,210.72,210.69,20.71]
[1756480999012,16.57861386,210.7,210.69,20.71]
[1756480999592,16.57861386,210.7,210.69,20.0]
[1756480999983,16.57861386,210.7,210.67,20.0]
[1756481000202,16.57861386,210.7,210.65,20.0]
[1756481000203,16.57861386,210.68,210.65,20.0]
[1756481000416,16.57861386,210.66,210.63,20.0]
[1756481000711,16.57861386,210.64,210.63,20.71]
[1756481000901,16.57861386,210.64,210.63,20.0]
[1756481002012,21.32605024,210.64,210.63,20.0]
[1756481002177,4.74743638,210.64,210.62,0.2]
[1756481002382,16.57861386,210.63,210.62,0.2]
[1756481002605,16.57861386,210.63,210.62,0.91]
[1756481002900,0.14216157,210.69,210.62,0.91]
[1756481003088,40.40216157,210.69,210.65,20.0]
[1756481003296,16.57861386,210.67,210.66,0.71]
[1756481003482,16.57861386,210.68,210.67,20.0]
[1756481003675,45.00582341,210.72,210.67,20.0]
[1756481003981,45.00582341,210.72,210.63,0.71]
[1756481003982,0.14216157,210.66,210.62,20.2]
[1756481004175,13.59559401,210.67,210.62,20.2]
[1756481004176,0.14216157,210.64,210.62,0.2]
[1756481004576,56.98077543,210.63,210.62,0.2]
[1756481005015,62.3984372,210.63,210.62,0.2]
[1756481005178,62.3984372,210.63,210.55,20.0]
[1756481005179,26.0,210.6,210.55,20.0]
[1756481005380,26.0,210.6,210.57,20.0]
[1756481005997,4.74766177,210.63,210.57,20.71]
[1756481006301,4.74766177,210.63,210.59,20.0]
[1756481006302,26.14216157,210.62,210.59,20.0]
[1756481006500,16.57861386,210.6,210.59,20.0]
[1756481007076,30.89013242,210.62,210.59,20.0]
[1756481007301,16.57861386,210.6,210.59,20.0]
[1756481007502,13.59559401,210.7,210.63,20.0]
[1756481007701,16.57861386,210.67,210.65,20.0]
[1756481007997,16.57861386,210.66,210.65,20.71]
[1756481008505,16.57861386,210.66,210.65,20.0]
[1756481008709,16.57861386,210.67,210.65,20.71]
[1756481009085,4.74608448,210.7,210.65,20.71]
[1756481009086,16.57861386,210.66,210.65,20.71]
[1756481009499,4.88782464,210.72,210.65,20.71]
[1756481009700,16.57861386,210.7,210.69,20.0]
[1756481010411,4.74495848,210.75,210.69,20.71]
[1756481010583,4.74495848,210.75,210.72,20.0]
[1756481010778,40.26,210.77,210.72,20.71]
[1756481010978,40.26,210.77,210.74,20.0]
[1756481011196,4.74428313,210.78,210.74,20.0]
[1756481011402,0.67,210.77,210.74,20.0]
[1756481011603,4.74428313,210.78,210.74,20.0]
[1756481011977,4.74428313,210.78,210.74,20.71]
[1756481012320,0.67,210.87,210.78,20.0]
[1756481012616,0.67,210.87,210.81,20.0]
[1756481012617,38.78293302,210.84,210.81,20.0]
[1756481012994,38.78293302,210.84,210.79,20.0]
[1756481013304,26.0,210.81,210.77,20.0]
[1756481013516,0.81216157,210.8,210.75,20.0]
[1756481013683,40.24,210.79,210.75,20.0]
[1756481013886,40.24,210.83,210.77,20.0]
[1756481014101,40.24,210.83,210.8,20.0]
[1756481014790,4.74338298,210.82,210.8,20.0]
[1756481015001,0.14216157,210.78,210.74,20.0]
[1756481015324,16.57861386,210.75,210.72,20.0]
[1756481015485,16.57861386,210.73,210.72,20.0]
[1756481016626,17.24861386,210.73,210.69,20.0]
[1756481016914,42.57861386,210.75,210.69,20.0]
[1756481016915,16.57861386,210.7,210.69,20.0]
[1756481017120,0.67,210.79,210.72,20.0]
[1756481017294,16.57861386,210.73,210.72,20.0]
[1756481017690,16.57861386,210.73,210.72,20.71]
[1756481017907,16.57861386,210.73,210.72,20.0]
[1756481018682,4.74473334,210.76,210.74,20.0]
[1756481019204,16.57861386,210.75,210.72,20.0]
[1756481019407,16.57861386,210.73,210.72,20.0]
[1756481021306,21.32402267,210.73,210.7,20.0]
[1756481021496,5.41540881,210.73,210.7,20.0]
[1756481021807,5.41540881,210.73,210.67,20.0]
[1756481021808,26.67,210.72,210.67,20.0]
[1756481022009,66.22,210.72,210.67,20.0]
[1756481022216,66.22,210.72,210.63,0.03]
[1756481022217,16.57861386,210.68,210.63,20.03]
[1756481022398,16.57861386,210.64,210.63,20.03]
[1756481022717,40.22,210.71,210.67,20.0]
[1756481022889,16.57861386,210.68,210.67,20.71]
[1756481023090,16.57861386,210.68,210.67,20.0]
[1756481023393,4.74602908,210.71,210.67,20.0]
[1756481023605,16.57861386,210.68,210.67,20.71]
[1756481023811,16.57861386,210.68,210.67,20.0]
[1756481024824,4.74567649,210.72,210.69,20.0]
[1756481025110,16.57861386,210.7,210.69,20.0]
[1756481025943,26.0,210.67,210.63,0.03]
[1756481026218,16.57861386,210.64,210.63,0.03]
[1756481026798,21.32605024,210.64,210.63,0.03]
[1756481027501,35.73380582,210.64,210.63,0.03]
[1756481028296,39.73775558,210.61,210.6,0.03]
[1756481028523,16.61602734,210.64,210.6,0.03]
[1756481028705,0.14216157,210.63,210.6,0.03]
[1756481029025,16.57861386,210.61,210.6,0.03]
[1756481029205,21.32672648,210.61,210.6,0.03]
[1756481029411,31.41811262,210.61,210.6,0.03]
[1756481029605,47.99672648,210.61,210.6,0.03]
[1756481029830,47.46888805,210.61,210.6,0.03]
[1756481030208,47.32672648,210.61,210.6,0.03]
[1756481030931,87.52672648,210.61,210.6,0.03]
[1756481031903,88.33888805,210.61,210.6,0.03]
[1756481032304,87.66888805,210.61,210.6,0.03]
[1756481032823,61.52672648,210.61,210.6,0.03]
[1756481033020,16.57861386,210.61,210.6,0.03]
[1756481033400,39.73775558,210.59,210.52,20.2]
[1756481033744,16.57861386,210.53,210.52,20.2]
[1756481033945,0.14216157,210.58,210.54,20.0]
[1756481034143,16.57861386,210.55,210.54,20.0]
[1756481035421,0.73,210.64,210.57,20.0]
[1756481035623,16.57861386,210.58,210.57,20.0]
[1756481035824,16.57861386,210.58,210.57,20.71]
[1756481037224,44.94804428,210.62,210.57,20.71]
[1756481037457,44.94804428,210.62,210.58,0.71]
[1756481037644,44.94804428,210.62,210.59,20.0]
[1756481037949,44.94804428,210.62,210.61,20.0]
[1756481037950,4.74804428,210.62,210.61,20.0]
[1756481038112,44.94804428,210.62,210.61,20.0]
[1756481038733,21.32665814,210.62,210.61,20.0]
[1756481039047,4.80755273,210.64,210.61,20.71]
[1756481039218,16.57861386,210.62,210.61,20.0]
[1756481039423,13.59559401,210.61,210.57,20.0]
[1756481039737,16.57861386,210.58,210.57,20.0]
[1756481040122,0.06,210.67,210.57,20.0]
[1756481040352,4.80755273,210.64,210.61,20.0]
[1756481040653,16.57861386,210.62,210.61,20.0]
[1756481040848,44.98755273,210.64,210.61,20.0]
[1756481041148,0.06,210.64,210.63,20.0]
[1756481041358,0.06,210.64,210.63,20.72]
[1756481041654,0.06,210.64,210.63,20.0]
[1756481041858,16.63861386,210.64,210.63,20.0]
[1756481042031,21.38605024,210.64,210.63,20.0]
[1756481042338,16.63861386,210.64,210.63,20.0]
[1756481043157,16.63861386,210.64,210.63,20.72]
[1756481043455,16.63861386,210.64,210.63,20.0]
[1756481043855,21.38605024,210.64,210.63,20.0]
[1756481044642,16.63861386,210.64,210.63,20.72]
[1756481044837,16.63861386,210.64,210.63,20.0]
[1756481045959,16.63861386,210.64,210.63,20.72]
[1756481046256,21.38605024,210.64,210.63,20.0]
[1756481046436,22.04605024,210.64,210.63,20.0]
[1756481046631,62.20605024,210.64,210.63,20.0]
[1756481046850,61.54605024,210.64,210.63,20.0]
[1756481047649,56.79861386,210.64,210.63,20.0]
[1756481047846,61.54605024,210.64,210.63,20.0]
[1756481048252,0.06,210.64,210.63,20.72]
[1756481048856,16.63861386,210.64,210.63,20.72]
[1756481049058,16.63861386,210.64,210.63,20.75]
[1756481049463,16.63861386,210.64,210.63,20.03]
[1756481049768,0.06,210.64,210.63,20.75]
[1756481049944,16.63861386,210.64,210.63,20.03]
[1756481050130,21.38605024,210.64,210.63,20.03]
[1756481050331,4.94959795,210.64,210.63,0.03]
[1756481050575,35.78380582,210.64,210.63,0.03]
[1756481050864,16.57861386,210.6,210.59,20.0]
[1756481051464,21.32695194,210.6,210.59,20.0]
[1756481052045,21.32695194,210.6,210.58,20.03]
[1756481052239,16.57861386,210.59,210.58,20.03]
[1756481053345,21.98717741,210.59,210.58,0.03]
[1756481053949,21.32717741,210.59,210.58,0.03]
[1756481054145,21.32717741,210.59,210.58,20.03]
[1756481054749,21.46933898,210.59,210.58,20.03]
[1756481055068,21.32717741,210.59,210.58,0.03]
[1756481056053,14.25559401,210.63,210.58,0.03]
[1756481056054,4.74769692,210.63,210.62,20.0]
[1756481056241,21.32631078,210.63,210.62,20.0]
[1756481058454,16.57861386,210.63,210.62,20.0]
[1756481058946,4.74766177,210.63,210.62,20.0]
[1756481059141,21.32627563,210.63,210.62,20.72]
[1756481059343,0.06,210.64,210.62,20.72]
[1756481059651,0.06,210.64,210.63,0.72]
[1756481062176,16.63861386,210.64,210.62,20.0]
[1756481062374,0.06,210.64,210.62,20.0]
[1756481062575,16.57861386,210.63,210.62,20.72]
[1756481063284,0.06,210.64,210.62,20.72]
[1756481063454,0.06,210.64,210.63,0.72]
[1756481063661,0.06,210.64,210.63,22.04627563]
[1756481063877,0.06,210.64,210.63,0.72]
[1756481064289,16.63861386,210.64,210.62,20.0]
[1756481064458,16.57861386,210.63,210.62,20.0]
[1756481065894,16.63861386,210.64,210.62,20.72]
[1756481066059,0.06,210.64,210.62,20.72]
[1756481066254,16.57861386,210.63,210.62,20.0]
[1756481066673,16.57861386,210.63,210.62,20.72]
[1756481066985,16.63861386,210.64,210.62,20.72]
[1756481067283,16.57861386,210.63,210.62,20.72]
[1756481068254,16.63861386,210.64,210.62,20.75]
[1756481068460,0.06,210.64,210.63,0.72]
[1756481069675,16.63861386,210.64,210.62,20.03]
[1756481069975,16.57861386,210.63,210.62,20.75]
[1756481070577,0.06,210.64,210.62,20.75]
[1756481070790,0.06,210.64,210.63,0.65]
[1756481070965,0.06,210.64,210.63,97.82861386]
[1756481071881,0.06,210.64,210.63,102.57627563]
[1756481072185,0.06,210.64,210.63,142.65627563]
[1756481073169,0.06,210.64,210.63,102.57627563]
[1756481073479,0.06,210.64,210.63,142.65627563]
[1756481074672,16.63861386,210.64,210.63,80.6]
[1756481075771,0.06,210.64,210.63,80.6]
[1756481075964,0.06,210.64,210.63,81.25]
[1756481076165,0.06,210.64,210.63,80.6]
[1756481077282,16.63861386,210.64,210.63,80.6]
[1756481078281,0.06,210.64,210.63,80.6]
[1756481078466,0.06,210.64,210.63,85.99766177]
[1756481078863,0.06,210.64,210.63,80.6]
[1756481078864,16.63861386,210.64,210.63,80.6]
[1756481079185,0.06,210.64,210.63,81.25]
[1756481079567,0.06,210.64,210.63,85.99766177]
[1756481081296,0.06,210.64,210.63,81.25]
[1756481081689,0.06,210.64,210.63,85.99766177]
[1756481082371,0.06,210.64,210.63,102.57627563]
[1756481083398,16.63861386,210.64,210.62,20.03]
[1756481083568,0.06,210.64,210.63,40.04]
[1756481083770,0.75,210.64,210.62,20.03]
[1756481084066,0.75,210.64,210.63,40.04]
[1756481084692,16.63861386,210.64,210.62,60.07]
[1756481084896,17.26861386,210.63,210.62,20.03]
[1756481085480,0.06,210.64,210.62,20.03]
[1756481085682,16.57861386,210.63,210.62,20.03]
[1756481086076,0.06,210.64,210.62,20.03]
[1756481086288,16.57861386,210.63,210.62,20.03]
[1756481086799,17.26861386,210.63,210.62,60.05]
[1756481087309,16.57861386,210.63,210.62,60.05]
[1756481087490,16.57861386,210.63,210.62,20.03]
[1756481087822,22.01627563,210.63,210.62,20.03]
[1756481088107,22.01627563,210.63,210.62,0.03]
[1756481088323,22.01627563,210.63,210.62,20.03]
[1756481088706,5.43766177,210.63,210.62,20.03]
[1756481088894,16.57861386,210.63,210.62,20.03]
[1756481089511,17.26861386,210.63,210.62,20.03]
[1756481090509,22.01627563,210.63,210.62,20.03]
[1756481090816,22.1584372,210.63,210.62,20.03]
[1756481090994,22.1584372,210.63,210.62,0.03]
[1756481091700,5.43766177,210.63,210.62,0.03]
[1756481091896,22.01627563,210.63,210.62,0.03]
[1756481093104,21.32627563,210.63,210.62,0.03]
[1756481093506,22.01627563,210.63,210.62,0.03]
[1756481093907,22.1584372,210.63,210.62,0.03]
[1756481095100,22.01627563,210.63,210.62,0.03]
[1756481095297,21.32627563,210.63,210.62,0.03]
[1756481095493,22.01627563,210.63,210.62,0.03]
[1756481095700,21.32627563,210.63,210.62,0.03]
[1756481095920,0.06,210.64,210.63,20.0]
[1756481096119,16.63861386,210.64,210.63,20.0]
[1756481096325,0.06,210.64,210.63,20.0]
[1756481096511,0.06,210.64,210.63,20.65]
[1756481097008,0.06,210.64,210.63,60.65]
[1756481097201,0.06,210.64,210.63,77.22861386]
[1756481097401,0.06,210.64,210.63,65.39766177]
[1756481097818,0.06,210.64,210.63,81.97627563]
[1756481098923,0.06,210.64,210.63,20.0]
[1756481099217,0.06,210.64,210.63,37.22861386]
[1756481099420,0.06,210.64,210.63,41.97627563]
[1756481099611,0.06,210.67,210.66,20.0]
[1756481099797,0.06,210.67,210.66,76.55861386]
[1756481099994,0.06,210.69,210.68,20.0]
[1756481100198,0.06,210.69,210.68,36.57861386]
[1756481100509,0.06,210.69,210.68,117.82861386]
[1756481100821,0.06,210.69,210.68,122.57514888]
[1756481101413,0.06,210.69,210.68,105.99653502]
[1756481101625,0.06,210.69,210.68,122.57514888]
[1756481103428,0.69,210.84,210.83,20.0]
[1756481103604,17.26861386,210.84,210.83,20.0]
[1756481103932,0.06,210.85,210.83,20.0]
[1756481104132,17.32861386,210.85,210.83,20.0]
[1756481104431,0.69,210.84,210.83,20.0]
[1756481104730,0.06,210.85,210.83,20.0]
[1756481105307,16.63861386,210.85,210.83,20.0]
[1756481105720,0.06,210.85,210.83,20.0]
[1756481106333,17.32861386,210.85,210.83,20.0]
[1756481106510,0.06,210.85,210.83,20.0]
[1756481107325,0.06,210.85,210.84,57.21861386]
[1756481107528,0.06,210.85,210.84,39.94]
[1756481107840,0.06,210.85,210.83,20.0]
[1756481108012,0.75,210.85,210.83,20.0]
[1756481108208,0.06,210.85,210.84,0.7]
[1756481108409,0.06,210.85,210.83,20.0]
[1756481109220,0.06,210.85,210.83,20.7]
[1756481109433,0.06,210.85,210.84,0.7]
[1756481109641,0.06,210.85,210.84,17.27861386]
[1756481110544,0.06,210.85,210.84,39.92]
[1756481111210,0.06,210.85,210.83,20.0]
[1756481111430,0.06,210.85,210.83,59.9]
[1756481111431,17.32861386,210.85,210.83,59.9]
[1756481111810,0.06,210.85,210.83,59.9]
[1756481112039,16.63861386,210.85,210.83,59.9]
[1756481112838,16.63861386,210.85,210.83,20.0]
[1756481113037,17.26861386,210.84,210.83,20.0]
[1756481113415,16.57861386,210.84,210.83,20.0]
[1756481115020,21.32154688,210.84,210.83,20.0]
[1756481115434,22.01154688,210.84,210.83,20.0]
[1756481116232,21.32154688,210.84,210.83,20.0]
[1756481116627,22.01154688,210.84,210.83,20.0]